[Event "Titled Tuesday Blitz March 08 Early 2022"]
[White "Spata, German"]
[Black "Guseva, Marina"]
[WhiteFideId "113026"]
[BlackFideId "4149351"]
[WhiteElo "2238"]
[BlackElo "2160"]
[Result "1-0"]
[Round "04"]
[TimeControl "180+1"]
[Date "2022.03.09"]
[WhiteClock "0:00:09"]
[BlackClock "0:00:02"]

1. Nf3 {[%clk 0:03:00]}  d5 {[%clk 0:02:57]} 2. d4 {[%clk 0:03:00]}  Nf6 {[%clk 0:02:56]} 3. e3 {[%clk 0:03:00]}  c6 {[%clk 0:02:49]} 4. c4 {[%clk 0:03:00]}  a6 {[%clk 0:02:48]} 5. Nbd2 {[%clk 0:02:59]}  Bg4 {[%clk 0:02:48]} 6. h3 {[%clk 0:02:58]}  Bh5 {[%clk 0:02:44]} 7. Be2 {[%clk 0:02:59]}  Nbd7 {[%clk 0:02:42]} 8. O-O {[%clk 0:02:58]}  e6 {[%clk 0:02:42]} 9. b3 {[%clk 0:02:59]}  b5 {[%clk 0:02:37]} 10. cxd5 {[%clk 0:02:56]}  cxd5 {[%clk 0:02:37]} 11. Bb2 {[%clk 0:02:57]}  Bd6 {[%clk 0:02:36]} 12. Ne5 {[%clk 0:02:57]}  Bxe2 {[%clk 0:02:35]} 13. Qxe2 {[%clk 0:02:58]}  O-O {[%clk 0:02:34]} 14. Rfc1 {[%clk 0:02:57]}  Qb8 {[%clk 0:02:25]} 15. Nxd7 {[%clk 0:02:42]}  Nxd7 {[%clk 0:02:24]} 16. Rc2 {[%clk 0:02:43]}  Rc8 {[%clk 0:02:24]} 17. Nf3 {[%clk 0:02:41]}  Rxc2 {[%clk 0:02:20]} 18. Qxc2 {[%clk 0:02:40]}  Nb6 {[%clk 0:02:03]} 19. Ne5 {[%clk 0:02:31]}  Qb7 {[%clk 0:02:01]} 20. Nd3 {[%clk 0:02:27]}  Rc8 {[%clk 0:01:58]} 21. Nc5 {[%clk 0:02:28]}  Bxc5 {[%clk 0:01:56]} 22. dxc5 {[%clk 0:02:28]}  Nd7 {[%clk 0:01:56]} 23. b4 {[%clk 0:02:15]}  Nb8 {[%clk 0:01:56]} 24. Qc3 {[%clk 0:02:13]}  f6 {[%clk 0:01:55]} 25. Qd4 {[%clk 0:02:09]}  Nc6 {[%clk 0:01:54]} 26. Qg4 {[%clk 0:02:07]}  Qc7 {[%clk 0:01:30]} 27. Qxe6+ {[%clk 0:02:06]}  Kh8 {[%clk 0:01:18]} 28. a3 {[%clk 0:02:04]}  Rd8 {[%clk 0:01:14]} 29. Rd1 {[%clk 0:02:03]}  Qd7 {[%clk 0:01:14]} 30. Qxd7 {[%clk 0:01:55]}  Rxd7 {[%clk 0:01:13]} 31. Bc3 {[%clk 0:01:54]}  Kg8 {[%clk 0:01:13]} 32. f3 {[%clk 0:01:47]}  Kf7 {[%clk 0:01:11]} 33. Kf2 {[%clk 0:01:48]}  Ke6 {[%clk 0:01:11]} 34. g4 {[%clk 0:01:48]}  g6 {[%clk 0:01:10]} 35. h4 {[%clk 0:01:47]}  Ra7 {[%clk 0:00:59]} 36. e4 {[%clk 0:01:35]}  d4 {[%clk 0:00:47]} 37. Bxd4 {[%clk 0:01:34]}  Rd7 {[%clk 0:00:46]} 38. Ke3 {[%clk 0:01:34]}  Ne5 {[%clk 0:00:43]} 39. c6 {[%clk 0:00:44]}  Nxc6 {[%clk 0:00:37]} 40. Rd3 {[%clk 0:00:41]}  h5 {[%clk 0:00:33]} 41. Bc3 {[%clk 0:00:35]}  Rxd3+ {[%clk 0:00:31]} 42. Kxd3 {[%clk 0:00:35]}  Kf7 {[%clk 0:00:23]} 43. Ke3 {[%clk 0:00:31]}  Ke6 {[%clk 0:00:19]} 44. Kf4 {[%clk 0:00:29]}  Ne7 {[%clk 0:00:17]} 45. Bd4 {[%clk 0:00:25]}  Nc6 {[%clk 0:00:15]} 46. Bb2 {[%clk 0:00:24]}  Ne7 {[%clk 0:00:15]} 47. Bc3 {[%clk 0:00:24]}  Nc6 {[%clk 0:00:15]} 48. g5 {[%clk 0:00:23]}  fxg5+ {[%clk 0:00:12]} 49. Kxg5 {[%clk 0:00:23]}  Kf7 {[%clk 0:00:13]} 50. f4 {[%clk 0:00:21]}  Ne7 {[%clk 0:00:11]} 51. f5 {[%clk 0:00:12]}  gxf5 {[%clk 0:00:11]} 52. exf5 {[%clk 0:00:13]}  Nd5 {[%clk 0:00:11]} 53. Bd4 {[%clk 0:00:13]}  Ne7 {[%clk 0:00:08]} 54. f6 {[%clk 0:00:12]}  Nd5 {[%clk 0:00:07]} 55. Kxh5 {[%clk 0:00:12]}  Nf4+ {[%clk 0:00:04]} 56. Kg4 {[%clk 0:00:10]}  Ne2 {[%clk 0:00:03]} 57. Be5 {[%clk 0:00:09]}  Nc1 {[%clk 0:00:02]} 58. h5 {[%clk 0:00:09]} 1-0


[Site "https://www.chess.com"]

[Event "Titled Tuesday Blitz March 08 Early 2022"]
[White "Svane, Frederik"]
[Black "Vokhidov, Shamsiddin"]
[WhiteFideId "12923044"]
[BlackFideId "14204223"]
[WhiteElo "2459"]
[BlackElo "2611"]
[Result "1/2-1/2"]
[Round "04"]
[TimeControl "180+1"]
[Date "2022.03.08"]
[WhiteClock "0:00:06"]
[BlackClock "0:00:13"]

1. e4 {[%clk 0:03:00]}  c5 {[%clk 0:03:00]} 2. Nf3 {[%clk 0:03:01]}  e6 {[%clk 0:03:01]} 3. d4 {[%clk 0:03:01]}  cxd4 {[%clk 0:03:01]} 4. Nxd4 {[%clk 0:03:02]}  Nf6 {[%clk 0:03:02]} 5. Nc3 {[%clk 0:03:01]}  Nc6 {[%clk 0:03:03]} 6. Be2 {[%clk 0:03:01]}  Bb4 {[%clk 0:03:02]} 7. O-O {[%clk 0:03:01]}  Bxc3 {[%clk 0:03:03]} 8. bxc3 {[%clk 0:03:02]}  Nxe4 {[%clk 0:03:03]} 9. Bd3 {[%clk 0:02:47]}  d5 {[%clk 0:03:02]} 10. Nxc6 {[%clk 0:02:41]}  bxc6 {[%clk 0:03:02]} 11. Ba3 {[%clk 0:02:42]}  c5 {[%clk 0:02:51]} 12. Bxe4 {[%clk 0:02:31]}  dxe4 {[%clk 0:02:52]} 13. Bxc5 {[%clk 0:02:32]}  Ba6 {[%clk 0:02:35]} 14. Re1 {[%clk 0:02:01]}  Qd5 {[%clk 0:02:32]} 15. Bb4 {[%clk 0:01:41]}  f6 {[%clk 0:02:20]} 16. Qg4 {[%clk 0:01:35]}  O-O-O {[%clk 0:02:06]} 17. Rad1 {[%clk 0:01:04]}  h5 {[%clk 0:02:05]} 18. Rxd5 {[%clk 0:01:00]}  hxg4 {[%clk 0:02:05]} 19. Rd4 {[%clk 0:00:50]}  Rxd4 {[%clk 0:01:42]} 20. cxd4 {[%clk 0:00:51]}  Bc4 {[%clk 0:01:36]} 21. Rxe4 {[%clk 0:00:42]}  Bxa2 {[%clk 0:01:35]} 22. Rxg4 {[%clk 0:00:42]}  g5 {[%clk 0:01:33]} 23. f4 {[%clk 0:00:37]}  gxf4 {[%clk 0:01:29]} 24. Rxf4 {[%clk 0:00:38]}  f5 {[%clk 0:01:30]} 25. g4 {[%clk 0:00:34]}  Rh4 {[%clk 0:01:23]} 26. h3 {[%clk 0:00:27]}  Bb1 {[%clk 0:01:16]} 27. c4 {[%clk 0:00:16]}  Rxh3 {[%clk 0:01:15]} 28. gxf5 {[%clk 0:00:15]}  exf5 {[%clk 0:01:13]} 29. d5 {[%clk 0:00:15]}  Be4 {[%clk 0:01:11]} 30. Kf2 {[%clk 0:00:13]}  Kd7 {[%clk 0:01:03]} 31. Ke2 {[%clk 0:00:14]}  Rb3 {[%clk 0:00:53]} 32. Bd2 {[%clk 0:00:14]}  Kd6 {[%clk 0:00:51]} 33. Rh4 {[%clk 0:00:13]}  Kc5 {[%clk 0:00:51]} 34. Be3+ {[%clk 0:00:13]}  Kxc4 {[%clk 0:00:51]} 35. d6 {[%clk 0:00:14]}  Rd3 {[%clk 0:00:48]} 36. Bxa7 {[%clk 0:00:11]}  Rxd6 {[%clk 0:00:47]} 37. Be3 {[%clk 0:00:12]}  Ra6 {[%clk 0:00:47]} 38. Rh6 {[%clk 0:00:10]}  Ra2+ {[%clk 0:00:46]} 39. Bd2 {[%clk 0:00:10]}  f4 {[%clk 0:00:45]} 40. Rh4 {[%clk 0:00:10]}  Bd3+ {[%clk 0:00:29]} 41. Ke1 {[%clk 0:00:10]}  Be4 {[%clk 0:00:22]} 42. Ke2 {[%clk 0:00:08]}  f3+ {[%clk 0:00:17]} 43. Ke3 {[%clk 0:00:08]}  Kd5 {[%clk 0:00:17]} 44. Rh5+ {[%clk 0:00:06]}  Ke6 {[%clk 0:00:18]} 45. Kxe4 {[%clk 0:00:05]}  Rxd2 {[%clk 0:00:13]} 46. Rh6+ {[%clk 0:00:05]}  Kf7 {[%clk 0:00:13]} 47. Kxf3 {[%clk 0:00:06]} 1/2-1/2


[Site "https://www.chess.com"]

[Event "Titled Tuesday Blitz March 08 Early 2022"]
[White "Taichman, Ori"]
[Black "Matlakov, Maxim"]
[WhiteFideId "2804069"]
[BlackFideId "4168003"]
[WhiteElo "2227"]
[BlackElo "2669"]
[Result "0-1"]
[Round "04"]
[TimeControl "180+1"]
[Date "2022.03.08"]
[WhiteClock "0:00:32"]
[BlackClock "0:02:11"]

1. e4 {[%clk 0:03:00]}  c5 {[%clk 0:02:59]} 2. b3 {[%clk 0:03:00]}  d6 {[%clk 0:02:53]} 3. Bb2 {[%clk 0:02:54]}  Nf6 {[%clk 0:02:53]} 4. Nc3 {[%clk 0:02:38]}  Nc6 {[%clk 0:02:47]} 5. f4 {[%clk 0:02:36]}  g6 {[%clk 0:02:46]} 6. Qe2 {[%clk 0:02:32]}  Nd4 {[%clk 0:02:40]} 7. Qd3 {[%clk 0:02:32]}  Bg7 {[%clk 0:02:40]} 8. Nf3 {[%clk 0:02:28]}  Nxf3+ {[%clk 0:02:35]} 9. gxf3 {[%clk 0:02:26]}  Nh5 {[%clk 0:02:29]} 10. f5 {[%clk 0:02:11]}  O-O {[%clk 0:02:23]} 11. O-O-O {[%clk 0:02:08]}  Bd7 {[%clk 0:02:21]} 12. Qe3 {[%clk 0:01:11]}  Bd4 {[%clk 0:02:20]} 13. Qh6 {[%clk 0:01:10]}  e6 {[%clk 0:02:17]} 14. fxg6 {[%clk 0:00:56]}  fxg6 {[%clk 0:02:16]} 15. Bh3 {[%clk 0:00:49]}  Nf4 {[%clk 0:02:12]} 16. Nb1 {[%clk 0:00:32]}  Ne2# {[%clk 0:02:11]} 0-1


[Site "https://www.chess.com"]

[Event "Titled Tuesday Blitz March 08 Early 2022"]
[White "Tasev, Dejan"]
[Black "Mayaud, Raphael"]
[WhiteFideId "936618"]
[BlackFideId "627151"]
[WhiteElo "2253"]
[BlackElo "2191"]
[Result "1-0"]
[Round "04"]
[TimeControl "180+1"]
[Date "2022.03.09"]
[WhiteClock "0:00:44"]
[BlackClock "0:00:04"]

1. e4 {[%clk 0:03:00]}  d5 {[%clk 0:02:59]} 2. exd5 {[%clk 0:03:00]}  Qxd5 {[%clk 0:02:59]} 3. Nc3 {[%clk 0:03:00]}  Qa5 {[%clk 0:02:59]} 4. Bc4 {[%clk 0:03:00]}  c6 {[%clk 0:02:59]} 5. Bb3 {[%clk 0:03:00]}  Nf6 {[%clk 0:03:00]} 6. d3 {[%clk 0:03:01]}  Bf5 {[%clk 0:02:57]} 7. Ne2 {[%clk 0:03:00]}  e6 {[%clk 0:02:56]} 8. Ng3 {[%clk 0:03:00]}  Bg6 {[%clk 0:02:56]} 9. O-O {[%clk 0:03:00]}  Nbd7 {[%clk 0:02:55]} 10. Bd2 {[%clk 0:03:00]}  Qc7 {[%clk 0:02:55]} 11. f4 {[%clk 0:02:56]}  Bd6 {[%clk 0:02:55]} 12. Qe2 {[%clk 0:02:53]}  O-O-O {[%clk 0:02:54]} 13. Rae1 {[%clk 0:02:52]}  Rde8 {[%clk 0:02:36]} 14. Qf3 {[%clk 0:02:43]}  h5 {[%clk 0:02:23]} 15. Nge4 {[%clk 0:02:31]}  h4 {[%clk 0:01:58]} 16. h3 {[%clk 0:02:23]}  Bh5 {[%clk 0:01:41]} 17. Nxd6+ {[%clk 0:02:19]}  Qxd6 {[%clk 0:01:40]} 18. Qf2 {[%clk 0:02:19]}  Kb8 {[%clk 0:01:25]} 19. Be3 {[%clk 0:02:15]}  a6 {[%clk 0:01:05]} 20. Ne4 {[%clk 0:02:08]}  Qc7 {[%clk 0:00:57]} 21. Nxf6 {[%clk 0:02:03]}  gxf6 {[%clk 0:00:48]} 22. Bd4 {[%clk 0:02:00]}  Qd6 {[%clk 0:00:39]} 23. Bc3 {[%clk 0:01:55]}  Bg6 {[%clk 0:00:38]} 24. Re3 {[%clk 0:01:47]}  Bf5 {[%clk 0:00:37]} 25. a3 {[%clk 0:01:36]}  Reg8 {[%clk 0:00:37]} 26. Bb4 {[%clk 0:01:34]}  Qc7 {[%clk 0:00:37]} 27. Be1 {[%clk 0:01:22]}  Rg6 {[%clk 0:00:36]} 28. Kh2 {[%clk 0:01:10]}  Rhg8 {[%clk 0:00:36]} 29. Rg1 {[%clk 0:01:09]}  Qd6 {[%clk 0:00:35]} 30. Qxh4 {[%clk 0:01:05]}  e5 {[%clk 0:00:29]} 31. Bg3 {[%clk 0:00:53]}  Qc5 {[%clk 0:00:20]} 32. Rge1 {[%clk 0:00:45]}  exf4 {[%clk 0:00:20]} 33. Qxf4+ {[%clk 0:00:45]}  Ka8 {[%clk 0:00:18]} 34. Bxf7 {[%clk 0:00:45]}  Rg5 {[%clk 0:00:04]} 35. Bxg8 {[%clk 0:00:44]} 1-0


[Site "https://www.chess.com"]

[Event "Titled Tuesday Blitz March 08 Early 2022"]
[White "Thomas, Anysia"]
[Black "Gulecyuz, Deniz"]
[WhiteFideId "670472"]
[BlackFideId "30921341"]
[WhiteElo "2002"]
[BlackElo "1923"]
[Result "1-0"]
[Round "04"]
[TimeControl "180+1"]
[Date "2022.03.09"]
[WhiteClock "0:01:57"]
[BlackClock "0:00:25"]

1. d4 {[%clk 0:03:00]}  Nf6 {[%clk 0:02:59]} 2. c4 {[%clk 0:03:00]}  g6 {[%clk 0:02:59]} 3. Nc3 {[%clk 0:03:01]}  d5 {[%clk 0:03:00]} 4. cxd5 {[%clk 0:03:02]}  Nxd5 {[%clk 0:03:01]} 5. e4 {[%clk 0:03:02]}  Nxc3 {[%clk 0:03:01]} 6. bxc3 {[%clk 0:03:03]}  Bg7 {[%clk 0:03:02]} 7. Nf3 {[%clk 0:03:04]}  c5 {[%clk 0:03:02]} 8. Be3 {[%clk 0:03:04]}  O-O {[%clk 0:02:59]} 9. Be2 {[%clk 0:03:04]}  Nc6 {[%clk 0:02:50]} 10. O-O {[%clk 0:03:03]}  cxd4 {[%clk 0:02:50]} 11. cxd4 {[%clk 0:03:03]}  Bg4 {[%clk 0:02:34]} 12. d5 {[%clk 0:03:03]}  Bxf3 {[%clk 0:02:32]} 13. Bxf3 {[%clk 0:03:00]}  Ne5 {[%clk 0:02:33]} 14. Be2 {[%clk 0:03:00]}  Qd7 {[%clk 0:02:18]} 15. Rc1 {[%clk 0:02:52]}  e6 {[%clk 0:02:06]} 16. f4 {[%clk 0:02:46]}  exd5 {[%clk 0:01:52]} 17. fxe5 {[%clk 0:02:46]}  Bxe5 {[%clk 0:01:45]} 18. Qxd5 {[%clk 0:02:45]}  Qxd5 {[%clk 0:01:40]} 19. exd5 {[%clk 0:02:45]}  Rfd8 {[%clk 0:01:41]} 20. Bc4 {[%clk 0:02:40]}  b6 {[%clk 0:01:32]} 21. Bb3 {[%clk 0:02:28]}  Rac8 {[%clk 0:01:27]} 22. Bg5 {[%clk 0:02:22]}  Bd4+ {[%clk 0:01:04]} 23. Kh1 {[%clk 0:02:21]}  f6 {[%clk 0:00:43]} 24. Rxc8 {[%clk 0:02:03]}  Rxc8 {[%clk 0:00:42]} 25. d6+ {[%clk 0:02:04]}  Kg7 {[%clk 0:00:41]} 26. Bf4 {[%clk 0:02:00]}  Rd8 {[%clk 0:00:28]} 27. h3 {[%clk 0:01:59]}  Be5 {[%clk 0:00:24]} 28. Bxe5 {[%clk 0:01:58]}  fxe5 {[%clk 0:00:24]} 29. Rf7+ {[%clk 0:01:58]}  Kg8 {[%clk 0:00:25]} 30. Rd7+ {[%clk 0:01:57]} 1-0


[Site "https://www.chess.com"]

[Event "Titled Tuesday Blitz March 08 Early 2022"]
[White "Tologon tegin, Semetei"]
[Black "Gubanov, Oleg"]
[WhiteFideId "13800574"]
[BlackFideId "14115115"]
[WhiteElo "2258"]
[BlackElo "2080"]
[Result "1-0"]
[Round "04"]
[TimeControl "180+1"]
[Date "2022.03.09"]
[WhiteClock "0:00:35"]
[BlackClock "0:00:01"]

1. e4 {[%clk 0:03:00]}  Nf6 {[%clk 0:02:59]} 2. e5 {[%clk 0:03:00]}  Nd5 {[%clk 0:02:58]} 3. d4 {[%clk 0:03:00]}  d6 {[%clk 0:02:59]} 4. Nf3 {[%clk 0:03:00]}  dxe5 {[%clk 0:02:59]} 5. Nxe5 {[%clk 0:03:00]}  c6 {[%clk 0:03:00]} 6. Bc4 {[%clk 0:02:59]}  Be6 {[%clk 0:03:00]} 7. O-O {[%clk 0:02:58]}  Nd7 {[%clk 0:03:00]} 8. Re1 {[%clk 0:02:55]}  Nxe5 {[%clk 0:03:00]} 9. Rxe5 {[%clk 0:02:55]}  g6 {[%clk 0:02:57]} 10. Rxe6 {[%clk 0:02:52]}  fxe6 {[%clk 0:02:56]} 11. Qg4 {[%clk 0:02:41]}  Qd6 {[%clk 0:02:01]} 12. Nc3 {[%clk 0:02:32]}  Nf6 {[%clk 0:01:49]} 13. Qe2 {[%clk 0:02:24]}  O-O-O {[%clk 0:01:26]} 14. Bxe6+ {[%clk 0:02:19]}  Kb8 {[%clk 0:01:25]} 15. Be3 {[%clk 0:02:09]}  Bg7 {[%clk 0:01:11]} 16. f3 {[%clk 0:01:54]}  Ka8 {[%clk 0:01:09]} 17. Bf2 {[%clk 0:01:54]}  Nh5 {[%clk 0:00:59]} 18. d5 {[%clk 0:01:49]}  Bxc3 {[%clk 0:00:27]} 19. bxc3 {[%clk 0:01:50]}  cxd5 {[%clk 0:00:28]} 20. Rb1 {[%clk 0:01:39]}  Qa6 {[%clk 0:00:19]} 21. Qe5 {[%clk 0:01:31]}  Nf4 {[%clk 0:00:17]} 22. Qxf4 {[%clk 0:01:10]}  Qxe6 {[%clk 0:00:16]} 23. Qd4 {[%clk 0:01:10]}  Qa6 {[%clk 0:00:15]} 24. Rb4 {[%clk 0:01:10]}  e5 {[%clk 0:00:12]} 25. Qxe5 {[%clk 0:01:06]}  d4 {[%clk 0:00:10]} 26. cxd4 {[%clk 0:00:48]}  Rhe8 {[%clk 0:00:07]} 27. Qg7 {[%clk 0:00:43]}  Re2 {[%clk 0:00:03]} 28. Qc7 {[%clk 0:00:40]}  Rb8 {[%clk 0:00:03]} 29. Bg3 {[%clk 0:00:39]}  Ree8 {[%clk 0:00:01]} 30. h3 {[%clk 0:00:35]} 1-0


[Site "https://www.chess.com"]

[Event "Titled Tuesday Blitz March 08 Early 2022"]
[White "Tsatsalashvili, Keti"]
[Black "Ianov, Viktor"]
[WhiteFideId "13603434"]
[BlackFideId "14102730"]
[WhiteElo "2246"]
[BlackElo "2161"]
[Result "1-0"]
[Round "04"]
[TimeControl "180+1"]
[Date "2022.03.09"]
[WhiteClock "0:00:31"]
[BlackClock "0:01:36"]

1. d4 {[%clk 0:03:00]}  d6 {[%clk 0:02:57]} 2. c4 {[%clk 0:02:58]}  g6 {[%clk 0:02:56]} 3. Nc3 {[%clk 0:02:57]}  Bg7 {[%clk 0:02:56]} 4. e4 {[%clk 0:02:57]}  Nc6 {[%clk 0:02:55]} 5. Be3 {[%clk 0:02:51]}  e5 {[%clk 0:02:55]} 6. Nge2 {[%clk 0:02:37]}  Nf6 {[%clk 0:02:54]} 7. f3 {[%clk 0:02:31]}  O-O {[%clk 0:02:54]} 8. d5 {[%clk 0:02:28]}  Ne7 {[%clk 0:02:53]} 9. g4 {[%clk 0:02:26]}  c5 {[%clk 0:02:48]} 10. h4 {[%clk 0:02:24]}  h5 {[%clk 0:02:47]} 11. g5 {[%clk 0:02:10]}  Nh7 {[%clk 0:02:47]} 12. Qd2 {[%clk 0:02:07]}  f6 {[%clk 0:02:47]} 13. gxf6 {[%clk 0:02:04]}  Bxf6 {[%clk 0:02:46]} 14. O-O-O {[%clk 0:01:55]}  a6 {[%clk 0:02:45]} 15. Kb1 {[%clk 0:01:43]}  b5 {[%clk 0:02:45]} 16. cxb5 {[%clk 0:01:41]}  axb5 {[%clk 0:02:45]} 17. Nxb5 {[%clk 0:01:40]}  Ba6 {[%clk 0:02:45]} 18. Nbc3 {[%clk 0:01:30]}  Nc8 {[%clk 0:02:42]} 19. Rg1 {[%clk 0:01:24]}  Kf7 {[%clk 0:02:34]} 20. Bh3 {[%clk 0:01:15]}  Bxh4 {[%clk 0:02:32]} 21. Be6+ {[%clk 0:01:15]}  Kf6 {[%clk 0:02:32]} 22. f4 {[%clk 0:01:11]}  Ne7 {[%clk 0:02:24]} 23. fxe5+ {[%clk 0:01:06]}  dxe5 {[%clk 0:02:24]} 24. Bh6 {[%clk 0:00:57]}  Nf5 {[%clk 0:01:46]} 25. exf5 {[%clk 0:00:56]}  gxf5 {[%clk 0:01:46]} 26. Rdf1 {[%clk 0:00:38]}  f4 {[%clk 0:01:38]} 27. Ne4+ {[%clk 0:00:32]}  Ke7 {[%clk 0:01:36]} 28. Rg7+ {[%clk 0:00:31]} 1-0


[Site "https://www.chess.com"]

[Event "Titled Tuesday Blitz March 08 Early 2022"]
[White "Van Foreest, Jorden"]
[Black "Madaminov, Mukhiddin"]
[WhiteFideId "1039784"]
[BlackFideId "14210703"]
[WhiteElo "2609"]
[BlackElo "1916"]
[Result "1-0"]
[Round "04"]
[TimeControl "180+1"]
[Date "2022.03.08"]
[WhiteClock "0:00:30"]
[BlackClock "0:00:01"]

1. b3 {[%clk 0:02:59]}  e5 {[%clk 0:02:52]} 2. Bb2 {[%clk 0:03:00]}  Nc6 {[%clk 0:02:53]} 3. e3 {[%clk 0:03:00]}  d5 {[%clk 0:02:53]} 4. Bb5 {[%clk 0:03:00]}  Bd6 {[%clk 0:02:54]} 5. f4 {[%clk 0:02:50]}  Qe7 {[%clk 0:02:18]} 6. Nf3 {[%clk 0:02:48]}  Bg4 {[%clk 0:02:18]} 7. fxe5 {[%clk 0:02:20]}  Bxe5 {[%clk 0:02:04]} 8. Bxe5 {[%clk 0:02:20]}  Bxf3 {[%clk 0:02:03]} 9. Qxf3 {[%clk 0:02:21]}  Qxe5 {[%clk 0:02:03]} 10. Nc3 {[%clk 0:02:22]}  Nf6 {[%clk 0:02:03]} 11. O-O {[%clk 0:02:17]}  O-O {[%clk 0:02:01]} 12. Bxc6 {[%clk 0:02:16]}  bxc6 {[%clk 0:02:02]} 13. Qf4 {[%clk 0:02:09]}  Rae8 {[%clk 0:02:01]} 14. Qxe5 {[%clk 0:02:08]}  Rxe5 {[%clk 0:02:02]} 15. Rf4 {[%clk 0:02:08]}  Rfe8 {[%clk 0:01:58]} 16. Ra4 {[%clk 0:02:08]}  Ra8 {[%clk 0:01:52]} 17. Ra6 {[%clk 0:02:06]}  Re6 {[%clk 0:01:52]} 18. Rf1 {[%clk 0:02:02]}  Nd7 {[%clk 0:01:41]} 19. Rf4 {[%clk 0:02:00]}  Nc5 {[%clk 0:01:26]} 20. Ra5 {[%clk 0:01:55]}  Nb7 {[%clk 0:01:23]} 21. Ra6 {[%clk 0:01:49]}  Nc5 {[%clk 0:01:23]} 22. Ra3 {[%clk 0:01:45]}  Kf8 {[%clk 0:01:20]} 23. Ne2 {[%clk 0:01:38]}  Rd6 {[%clk 0:01:06]} 24. Nd4 {[%clk 0:01:20]}  g6 {[%clk 0:01:05]} 25. Nf3 {[%clk 0:01:20]}  Ke7 {[%clk 0:00:46]} 26. Rb4 {[%clk 0:01:20]}  a5 {[%clk 0:00:36]} 27. Rh4 {[%clk 0:01:20]}  h5 {[%clk 0:00:34]} 28. b4 {[%clk 0:01:20]}  Nb7 {[%clk 0:00:29]} 29. Ne5 {[%clk 0:01:19]}  c5 {[%clk 0:00:20]} 30. bxa5 {[%clk 0:00:59]}  Rxa5 {[%clk 0:00:19]} 31. Rxa5 {[%clk 0:00:59]}  Nxa5 {[%clk 0:00:20]} 32. Ra4 {[%clk 0:00:59]}  Nc4 {[%clk 0:00:14]} 33. Nxc4 {[%clk 0:00:47]}  dxc4 {[%clk 0:00:15]} 34. Rxc4 {[%clk 0:00:48]}  Rxd2 {[%clk 0:00:14]} 35. Rxc5 {[%clk 0:00:49]}  Kd7 {[%clk 0:00:11]} 36. Rc3 {[%clk 0:00:43]}  Kc8 {[%clk 0:00:11]} 37. h4 {[%clk 0:00:37]}  Kb7 {[%clk 0:00:11]} 38. Kh2 {[%clk 0:00:37]}  c6 {[%clk 0:00:07]} 39. Kg3 {[%clk 0:00:37]}  Kc7 {[%clk 0:00:07]} 40. e4 {[%clk 0:00:37]}  Kb6 {[%clk 0:00:06]} 41. Kf3 {[%clk 0:00:34]}  Kc7 {[%clk 0:00:05]} 42. g3 {[%clk 0:00:34]}  Rd1 {[%clk 0:00:04]} 43. Kf4 {[%clk 0:00:34]}  f6 {[%clk 0:00:02]} 44. Ke3 {[%clk 0:00:29]}  Re1+ {[%clk 0:00:02]} 45. Kd4 {[%clk 0:00:30]}  Rg1 {[%clk 0:00:02]} 46. Rf3 {[%clk 0:00:30]}  Kd7 {[%clk 0:00:01]} 47. a4 {[%clk 0:00:30]}  Rd1+ {[%clk 0:00:01]} 48. Kc4 {[%clk 0:00:30]}  Ke6 {[%clk 0:00:01]} 49. Ra3 {[%clk 0:00:30]}  Ra1 {[%clk 0:00:01]} 50. Rxa1 {[%clk 0:00:30]} 1-0


[Site "https://www.chess.com"]

[Event "Titled Tuesday Blitz March 08 Early 2022"]
[White "Vasquez Schroeder, Rodrigo"]
[Black "Mitusov, Semen"]
[WhiteFideId "3400042"]
[BlackFideId "14151049"]
[WhiteElo "2561"]
[BlackElo "2265"]
[Result "1-0"]
[Round "04"]
[TimeControl "180+1"]
[Date "2022.03.08"]
[WhiteClock "0:02:11"]
[BlackClock "0:01:16"]

1. e4 {[%clk 0:03:00]}  e5 {[%clk 0:02:59]} 2. Nf3 {[%clk 0:03:00]}  Qe7 {[%clk 0:02:59]} 3. Bc4 {[%clk 0:02:57]}  d6 {[%clk 0:02:58]} 4. O-O {[%clk 0:02:56]}  Bg4 {[%clk 0:02:58]} 5. h3 {[%clk 0:02:55]}  Bh5 {[%clk 0:02:58]} 6. c3 {[%clk 0:02:56]}  c6 {[%clk 0:02:55]} 7. d4 {[%clk 0:02:55]}  Qc7 {[%clk 0:02:54]} 8. Re1 {[%clk 0:02:53]}  Nf6 {[%clk 0:02:53]} 9. Nbd2 {[%clk 0:02:53]}  Be7 {[%clk 0:02:50]} 10. Nf1 {[%clk 0:02:53]}  Nbd7 {[%clk 0:02:46]} 11. Ng3 {[%clk 0:02:53]}  Bg6 {[%clk 0:02:46]} 12. Nh4 {[%clk 0:02:53]}  O-O-O {[%clk 0:02:39]} 13. Nhf5 {[%clk 0:02:53]}  Bf8 {[%clk 0:02:37]} 14. Qf3 {[%clk 0:02:51]}  Kb8 {[%clk 0:02:31]} 15. Bb3 {[%clk 0:02:46]}  h5 {[%clk 0:02:20]} 16. Bg5 {[%clk 0:02:45]}  Re8 {[%clk 0:02:13]} 17. Rad1 {[%clk 0:02:44]}  Nh7 {[%clk 0:02:12]} 18. Be3 {[%clk 0:02:40]}  Nhf6 {[%clk 0:02:11]} 19. Nh4 {[%clk 0:02:38]}  exd4 {[%clk 0:02:08]} 20. Nxg6 {[%clk 0:02:34]}  fxg6 {[%clk 0:02:05]} 21. cxd4 {[%clk 0:02:34]}  h4 {[%clk 0:02:02]} 22. Ne2 {[%clk 0:02:33]}  Rxe4 {[%clk 0:01:52]} 23. Nf4 {[%clk 0:02:31]}  d5 {[%clk 0:01:44]} 24. Nxg6 {[%clk 0:02:28]}  Rg8 {[%clk 0:01:44]} 25. Bc2 {[%clk 0:02:23]}  Bd6 {[%clk 0:01:38]} 26. Bxe4 {[%clk 0:02:21]}  Nxe4 {[%clk 0:01:34]} 27. Nxh4 {[%clk 0:02:19]}  Ndf6 {[%clk 0:01:28]} 28. Nf5 {[%clk 0:02:16]}  Ka8 {[%clk 0:01:28]} 29. Nxd6 {[%clk 0:02:14]}  Qxd6 {[%clk 0:01:29]} 30. Bf4 {[%clk 0:02:15]}  Qd7 {[%clk 0:01:28]} 31. Be5 {[%clk 0:02:14]}  Rf8 {[%clk 0:01:27]} 32. Qe2 {[%clk 0:02:14]}  a6 {[%clk 0:01:21]} 33. f3 {[%clk 0:02:14]}  Nd6 {[%clk 0:01:16]} 34. Bxd6 {[%clk 0:02:14]}  Qxd6 {[%clk 0:01:16]} 35. Qe7 {[%clk 0:02:14]}  Qb8 {[%clk 0:01:16]} 36. Qxg7 {[%clk 0:02:11]}  Nh5 {[%clk 0:01:16]} 37. Qe5 {[%clk 0:02:11]} 1-0


[Site "https://www.chess.com"]